bitfinex/quotes_SOLUSD_20251030
["timestamp","ask_amount","ask_price","bid_price","bid_amount"]
[1761828631614,70.592,187.29,187.24,0.1]
[1761828631830,5.0293533,187.26,187.25,0.72]
[1761828632044,5.0293533,187.26,187.24,0.1]
[1761828632244,5.0293533,187.25,187.24,0.1]
[1761828632523,19.18425078,187.25,187.24,0.1]
[1761828632715,5.0293533,187.19,187.18,0.1]
[1761828633835,55.0293533,187.19,187.18,0.1]
[1761828634013,5.0293533,187.19,187.18,0.1]
[1761828634207,50.0,187.21,187.18,0.1]
[1761828634409,25.6213533,187.21,187.18,0.82]
[1761828634638,5.0293533,187.2,187.18,0.1]
[1761828634841,5.0293533,187.2,187.18,0.82]
[1761828635030,20.592,187.23,187.18,6.16244367]
[1761828635222,5.0293533,187.2,187.18,0.1]
[1761828635428,5.0293533,187.21,187.19,0.72]
[1761828635631,5.0293533,187.23,187.19,0.72]
[1761828635938,5.0293533,187.25,187.2,5.0293533]
[1761828636151,5.0293533,187.26,187.2,5.0293533]
[1761828636438,50.0,187.3,187.21,0.72]
[1761828636650,5.0293533,187.29,187.23,23.72293872]
[1761828636849,5.0293533,187.26,187.21,0.72]
[1761828637016,9.78882769,187.32,187.18,0.82]
[1761828637212,50.0,187.31,187.21,5.0293533]
[1761828637419,9.78882769,187.33,187.21,5.0293533]
[1761828637420,5.0293533,187.26,187.21,5.0293533]
[1761828637624,50.0,187.29,187.21,5.0293533]
[1761828637625,5.0293533,187.25,187.21,0.72]
[1761828637861,5.0293533,187.24,187.21,0.72]
[1761828638232,5.0293533,187.25,187.21,0.72]
[1761828638438,5.0293533,187.23,187.18,6.16224791]
[1761828638723,20.592,187.29,187.18,6.16224791]
[1761828638724,5.0293533,187.24,187.19,0.72]
[1761828639254,20.592,187.29,187.21,5.0293533]
[1761828639425,50.0,187.33,187.24,5.0293533]
[1761828639630,9.78882769,187.35,187.25,5.0293533]
[1761828639631,50.0,187.35,187.25,5.0293533]
[1761828639848,50.0,187.42,187.31,5.0293533]
[1761828640068,50.0,187.44,187.33,5.0293533]
[1761828640348,5.0293533,187.4,187.34,5.7493533]
[1761828640519,5.0293533,187.4,187.35,18.68161195]
[1761828640724,50.0,187.46,187.36,5.0293533]
[1761828640725,5.0293533,187.41,187.36,5.0293533]
[1761828640968,50.0,187.46,187.37,5.0293533]
[1761828641276,5.0293533,187.43,187.38,0.72]
[1761828641656,5.0293533,187.45,187.39,5.0293533]
[1761828641951,5.0293533,187.47,187.41,5.0293533]
[1761828642438,63.53201989,187.52,187.42,5.7493533]
[1761828642439,5.0293533,187.48,187.42,5.7493533]
[1761828642628,5.0293533,187.5,187.44,5.0293533]
[1761828642957,5.0293533,187.48,187.43,0.72]
[1761828643120,5.0293533,187.44,187.39,0.72]
[1761828643317,5.0293533,187.41,187.37,6.05703367]
[1761828643553,20.592,187.46,187.38,0.72]
[1761828643845,5.0293533,187.43,187.38,0.72]
[1761828644050,5.0293533,187.42,187.38,0.72]
[1761828644216,5.0293533,187.43,187.38,0.72]
[1761828644633,5.0293533,187.43,187.39,5.33646405]
[1761828644848,5.0293533,187.42,187.38,0.72]
[1761828645048,5.0293533,187.42,187.38,6.05672571]
[1761828645246,5.0293533,187.42,187.38,0.72]
[1761828645447,5.0293533,187.42,187.39,0.72]
[1761828645952,5.0293533,187.4,187.34,0.72]
[1761828646129,5.0293533,187.39,187.34,0.72]
[1761828646453,5.0293533,187.38,187.34,0.72]
[1761828646648,5.0293533,187.38,187.35,5.33760341]
[1761828647030,20.592,187.43,187.36,0.72]
[1761828647253,5.0293533,187.39,187.36,0.72]
[1761828647422,70.592,187.43,187.34,5.33786443]
[1761828647423,5.0293533,187.38,187.34,5.33786443]
[1761828647629,5.0293533,187.35,187.29,5.0293533]
[1761828647852,5.0293533,187.35,187.26,0.14216157]
[1761828648151,5.0293533,187.33,187.28,5.0293533]
[1761828648342,5.0293533,187.35,187.29,5.0293533]
[1761828648655,5.0293533,187.34,187.3,5.33902829]
[1761828648951,5.0293533,187.31,187.25,5.34045393]
[1761828649123,5.0293533,187.27,187.25,6.06045393]
[1761828649324,5.0293533,187.26,187.22,0.48]
[1761828649549,5.0293533,187.28,187.22,5.5093533]
[1761828649753,5.0293533,187.27,187.22,0.48]
[1761828649946,5.0293533,187.27,187.23,0.48]
[1761828650125,5.0293533,187.24,187.19,11.09151901]
[1761828650341,5.0293533,187.24,187.2,0.18]
[1761828650747,5.0293533,187.22,187.12,0.63441641]
[1761828650947,5.0293533,187.25,187.18,11.19158631]
[1761828651158,5.0293533,187.24,187.18,24.5477141]
[1761828651352,5.0293533,187.23,187.19,0.72]
[1761828651829,20.592,187.27,187.19,0.72]
[1761828652156,5.0293533,187.26,187.21,5.0293533]
[1761828652357,5.0293533,187.27,187.22,0.67]
[1761828652731,5.0293533,187.23,187.18,6.11241231]
[1761828652934,5.0293533,187.21,187.19,0.67]
[1761828653243,5.0293533,187.22,187.19,0.67]
[1761828653431,20.592,187.27,187.19,0.67]
[1761828654031,5.0293533,187.24,187.19,0.67]
[1761828654654,5.0293533,187.25,187.2,23.72593449]
[1761828654862,5.0293533,187.25,187.2,18.69658119]
[1761828655044,50.0,187.35,187.23,5.0293533]
[1761828655233,10.3644443,187.44,187.21,5.84151487]
[1761828655234,5.0293533,187.26,187.21,5.84151487]
[1761828655428,5.0293533,187.24,187.21,0.67]
[1761828655640,5.0293533,187.25,187.22,0.67]
[1761828656573,20.592,187.28,187.22,0.67]
[1761828656871,5.0293533,187.25,187.22,0.67]
[1761828657170,5.0293533,187.23,187.18,0.77]
[1761828657373,5.0293533,187.19,187.18,0.1]
[1761828657671,55.0293533,187.19,187.18,0.1]
[1761828659438,75.6213533,187.19,187.18,0.1]
[1761828659878,50.0,187.17,187.12,0.1]
[1761828660360,14.81818099,187.22,187.12,0.1]
[1761828660361,5.0293533,187.13,187.12,0.1]
[1761828660564,60.0587066,187.13,187.12,0.1]
[1761828660741,20.592,187.13,187.12,0.1]
[1761828661134,5.0293533,187.13,187.12,0.77]
[1761828661335,50.0,187.24,187.12,13.71402677]
[1761828661530,7.5999116,187.33,187.15,7.5999116]
[1761828661531,50.0,187.27,187.15,7.5999116]
[1761828661756,7.5999116,187.22,187.16,8.2699116]
[1761828661976,7.5999116,187.23,187.17,7.74207317]
[1761828662152,7.5999116,187.25,187.17,0.81216157]
[1761828662335,7.5999116,187.25,187.2,7.5999116]
[1761828662535,7.5999116,187.24,187.19,0.14216157]
[1761828662740,7.5999116,187.25,187.2,18.69658119]
[1761828663078,7.5999116,187.22,187.2,0.67]
[1761828664069,50.0,187.3,187.2,0.67]
[1761828664442,7.5999116,187.25,187.2,0.67]
[1761828664679,50.0,187.34,187.24,7.5999116]
[1761828664839,50.0,187.39,187.26,7.5999116]
[1761828665042,50.0,187.39,187.26,0.14216157]
[1761828665348,50.0,187.42,187.29,7.5999116]
[1761828665652,50.0,187.42,187.3,7.5999116]
[1761828665862,7.5999116,187.39,187.33,7.5999116]
[1761828666062,7.5999116,187.36,187.29,0.67]
[1761828666289,7.5999116,187.33,187.29,0.67]
[1761828666441,50.0,187.4,187.29,8.2699116]
[1761828666442,7.5999116,187.35,187.29,8.2699116]
[1761828666765,20.592,187.39,187.29,8.2699116]
[1761828666766,7.5999116,187.36,187.31,18.68560139]
[1761828666944,50.0,187.42,187.31,13.34685814]
[1761828667145,50.0,187.42,187.32,0.67]
[1761828667359,7.5999116,187.37,187.32,0.67]
[1761828667775,20.592,187.42,187.33,7.5999116]
[1761828667981,7.5999116,187.39,187.33,7.5999116]
[1761828668182,17.38873929,187.46,187.34,0.67]
[1761828668364,4.37652544,187.48,187.34,0.67]
[1761828668365,20.592,187.38,187.34,0.67]
[1761828668545,50.0,187.48,187.35,0.14216157]
[1761828668748,7.5999116,187.43,187.38,18.67862098]
[1761828668983,34.07330309,187.59,187.38,18.67862098]
[1761828668984,7.5999116,187.45,187.38,18.67862098]
[1761828669261,7.5999116,187.43,187.39,0.67]
[1761828669660,50.0,187.48,187.39,0.67]
[1761828669869,7.5999116,187.45,187.39,8.2699116]
[1761828670064,7.5999116,187.45,187.39,0.67]
[1761828670260,50.0,187.53,187.41,7.5999116]
[1761828670470,7.5999116,187.43,187.37,0.53370336]
[1761828670780,7.5999116,187.4,187.37,0.67]
[1761828670978,7.5999116,187.38,187.33,0.67]
[1761828671155,20.592,187.4,187.25,26.70134795]
[1761828671475,7.5999116,187.37,187.32,0.67]
[1761828671663,20.592,187.38,187.32,0.67]
[1761828671861,7.5999116,187.36,187.32,0.67]
[1761828672096,20.592,187.39,187.29,7.5999116]
[1761828672302,20.592,187.39,187.31,0.06]
[1761828672457,50.0,187.47,187.34,7.5999116]
[1761828672663,50.0,187.49,187.34,0.14216157]
[1761828672992,7.5999116,187.43,187.37,7.5999116]
[1761828673298,9.78882769,187.49,187.37,7.5999116]
[1761828673461,7.5999116,187.45,187.38,0.85216157]
[1761828673650,7.5999116,187.44,187.38,8.45207317]
[1761828673852,7.5999116,187.44,187.39,0.71]
[1761828674163,50.0,187.51,187.4,7.5999116]
[1761828674367,50.0,187.53,187.41,7.74207317]
[1761828674591,7.5999116,187.47,187.42,0.71]
[1761828674762,7.5999116,187.47,187.43,5.33532518]
[1761828675176,50.0,187.54,187.44,0.71]
[1761828675381,7.5999116,187.52,187.46,7.5999116]
[1761828675586,7.5999116,187.52,187.45,7.74207317]
[1761828675900,50.0,187.54,187.45,7.74207317]
[1761828675901,7.5999116,187.51,187.45,7.74207317]
[1761828676102,7.5999116,187.51,187.46,0.71]
[1761828677113,7.5999116,187.48,187.46,0.71]
[1761828677306,20.592,187.53,187.46,0.71]
[1761828677307,7.5999116,187.5,187.46,0.71]
[1761828677881,7.5999116,187.5,187.46,6.04429324]
[1761828678083,20.592,187.53,187.46,6.04429324]
[1761828678386,0.2,187.56,187.47,0.71]
[1761828678708,7.5999116,187.53,187.47,0.71]
[1761828678878,7.5999116,187.52,187.48,5.33390228]
[1761828679084,0.2,187.56,187.48,5.33390228]
[1761828679309,0.2,187.56,187.49,0.71]
[1761828679489,7.5999116,187.52,187.49,0.71]
[1761828679910,7.5999116,187.53,187.49,0.71]
[1761828680121,7.5999116,187.5,187.45,0.71]
[1761828680289,7.5999116,187.51,187.46,0.71]
[1761828680883,7.5999116,187.51,187.47,5.3341868]
[1761828681108,7.5999116,187.5,187.47,5.3341868]
[1761828681321,20.592,187.55,187.48,0.71]
[1761828681546,20.592,187.53,187.48,0.71]
[1761828681847,7.5999116,187.49,187.45,0.71]
[1761828682052,7.5999116,187.49,187.45,6.0447534]
[1761828682346,7.5999116,187.5,187.45,6.0447534]
[1761828682518,7.5999116,187.51,187.46,0.72]
[1761828682714,20.592,187.44,187.3,0.53390282]
[1761828682921,20.592,187.44,187.27,1.25398835]
[1761828682922,20.592,187.43,187.27,1.25398835]
[1761828683118,20.592,187.39,187.27,0.72]
[1761828683325,20.592,187.39,187.29,0.14216157]
[1761828683523,70.592,187.4,187.28,0.72]
[1761828683961,20.592,187.4,187.28,0.72]
[1761828684835,20.592,187.4,187.29,18.82975834]
[1761828685166,20.592,187.4,187.29,19.36368967]
[1761828685375,50.0,187.45,187.31,0.14216157]
[1761828685660,50.0,187.45,187.32,0.18]
[1761828685661,20.592,187.42,187.32,0.18]
[1761828685873,7.5999116,187.4,187.32,0.18]
[1761828686146,50.0,187.41,187.32,0.18]
[1761828686356,7.5999116,187.37,187.32,0.18]
[1761828686522,20.592,187.4,187.32,0.18]
[1761828687031,7.5999116,187.37,187.32,5.51838113]
[1761828687229,20.592,187.38,187.3,0.36]
[1761828687432,7.5999116,187.34,187.3,0.36]
[1761828687640,50.0,187.43,187.3,0.36]
[1761828687844,5.33213761,187.55,187.36,7.5999116]
[1761828687845,7.5999116,187.42,187.36,7.5999116]
[1761828688040,7.5999116,187.42,187.32,0.14216157]
[1761828688041,7.5999116,187.44,187.39,7.5999116]
[1761828688240,7.5999116,187.43,187.38,0.72]
[1761828688622,50.0,187.48,187.38,0.72]
[1761828688833,7.5999116,187.43,187.39,5.33646405]
[1761828689044,7.5999116,187.43,187.31,9.78882769]
[1761828689045,7.5999116,187.4,187.34,0.39]
[1761828689249,70.592,187.41,187.26,5.34016874]
[1761828689456,7.5999116,187.36,187.26,5.87418561]
[1761828689655,20.592,187.41,187.32,7.5999116]
[1761828689857,50.0,187.49,187.37,7.5999116]
[1761828690060,7.5999116,187.43,187.38,0.72]
[1761828690265,7.5999116,187.44,187.39,7.5999116]
[1761828690555,50.0,187.51,187.4,8.3199116]
[1761828690556,7.5999116,187.46,187.4,8.3199116]
[1761828690867,7.5999116,187.42,187.34,19.40260915]
[1761828691037,7.5999116,187.42,187.29,20.592]
[1761828691038,7.5999116,187.4,187.33,5.33802761]
[1761828691237,7.5999116,187.35,187.31,0.72]
[1761828691460,7.5999116,187.36,187.31,0.72]
[1761828691661,7.5999116,187.34,187.31,0.72]
[1761828691859,7.5999116,187.32,187.21,5.341595]
[1761828692068,7.5999116,187.32,187.28,0.72]
[1761828692253,7.5999116,187.33,187.28,8.3199116]
[1761828692450,50.0,187.45,187.33,0.14216157]
[1761828692640,50.0,187.47,187.35,0.14216157]
[1761828692839,7.5999116,187.44,187.38,7.5999116]
[1761828693036,7.5999116,187.45,187.37,0.14216157]
[1761828693251,50.0,187.54,187.41,7.5999116]
[1761828693452,0.2,187.56,187.38,0.51]
[1761828693453,50.0,187.48,187.38,0.51]
[1761828693663,7.5999116,187.4,187.33,0.86216157]
[1761828693973,7.5999116,187.37,187.33,0.72]
[1761828694180,7.5999116,187.35,187.3,0.72]
[1761828694379,50.0,187.4,187.3,0.72]
[1761828694380,20.592,187.39,187.3,0.72]
[1761828694569,7.5999116,187.34,187.3,0.72]
[1761828694769,50.0,187.38,187.3,0.72]
[1761828694969,20.592,187.35,187.3,0.72]
[1761828695180,20.592,187.35,187.26,0.72]
[1761828695181,7.5999116,187.31,187.26,0.72]
[1761828695356,7.5999116,187.31,187.16,1.99999999]
[1761828695357,50.0,187.32,187.23,0.72]
[1761828695555,70.592,187.35,187.23,0.72]
[1761828695757,20.592,187.34,187.23,0.72]
[1761828696252,20.592,187.34,187.24,0.14216157]
[1761828696478,50.0,187.44,187.26,0.14216157]
[1761828696681,7.5999116,187.42,187.36,7.5999116]
[1761828696981,20.592,187.44,187.38,5.33674885]
[1761828697172,50.0,187.52,187.39,0.72]
[1761828697373,7.5999116,187.41,187.32,13.34562435]
[1761828697577,7.5999116,187.41,187.34,0.72]
[1761828697786,7.5999116,187.44,187.38,7.5999116]
[1761828697988,7.5999116,187.41,187.34,0.72]
[1761828698283,7.5999116,187.41,187.35,0.72]
[1761828698482,20.592,187.44,187.37,7.5999116]
[1761828698689,7.5999116,187.43,187.37,7.5999116]
[1761828698866,7.5999116,187.43,187.37,13.65670555]
[1761828699067,20.592,187.44,187.37,6.05679395]
[1761828699383,7.5999116,187.45,187.39,7.5999116]
[1761828699685,7.5999116,187.46,187.4,7.5999116]
[1761828699900,50.0,187.53,187.41,7.5999116]
[1761828700110,50.0,187.52,187.42,0.51]
[1761828700298,7.5999116,187.46,187.42,0.51]
[1761828700594,7.5999116,187.46,187.37,18.67937814]
[1761828700595,7.5999116,187.43,187.37,13.65670555]
[1761828700893,20.592,187.47,187.38,0.72]
[1761828701054,7.5999116,187.46,187.39,18.67762419]
[1761828701259,7.5999116,187.4,187.3,0.72]
[1761828701467,7.5999116,187.4,187.31,0.12]
[1761828701468,7.5999116,187.35,187.31,0.12]
[1761828701669,20.592,187.4,187.31,0.12]
[1761828701670,20.592,187.38,187.31,0.12]
[1761828702180,20.592,187.4,187.31,0.12]
[1761828702381,7.5999116,187.39,187.31,0.12]
[1761828702781,20.592,187.44,187.31,0.12]
[1761828702782,7.5999116,187.38,187.32,7.5999116]
[1761828703106,7.5999116,187.38,187.33,5.33817327]
[1761828703305,50.0,187.48,187.35,7.5999116]
[1761828703488,20.592,187.47,187.39,7.5999116]
[1761828703689,50.0,187.54,187.35,0.14216157]
[1761828704003,50.0,187.54,187.42,7.5999116]
[1761828704004,7.5999116,187.48,187.42,7.5999116]
[1761828704510,7.5999116,187.49,187.43,0.16]
[1761828704710,7.5999116,187.47,187.36,0.14216157]
[1761828704878,50.0,187.49,187.38,0.72]
[1761828705083,7.5999116,187.44,187.39,26.27753579]
[1761828705306,7.5999116,187.44,187.4,0.72]
[1761828705509,7.5999116,187.46,187.4,8.3199116]
[1761828705708,20.592,187.49,187.4,8.3199116]
[1761828705877,50.0,187.53,187.41,8.3199116]
[1761828706075,7.5999116,187.46,187.41,8.3199116]
[1761828706280,7.5999116,187.46,187.41,0.72]
[1761828706501,7.5999116,187.46,187.42,0.72]
[1761828706805,7.5999116,187.45,187.42,0.72]
[1761828707011,7.5999116,187.45,187.43,5.33532518]
[1761828707191,7.5999116,187.46,187.42,0.72]
[1761828707378,7.5999116,187.45,187.42,0.72]
[1761828707707,28.1919116,187.43,187.3,0.72]
[1761828707875,20.592,187.39,187.24,0.72]
[1761828708075,20.592,187.35,187.18,0.53424511]
[1761828708278,20.592,187.35,187.19,0.53421657]
[1761828708582,70.592,187.35,187.25,7.5999116]
[1761828708781,20.592,187.35,187.29,7.5999116]
[1761828708993,20.592,187.4,187.33,12.93808487]
[1761828709190,7.5999116,187.39,187.33,19.40360646]
[1761828709514,7.5999116,187.39,187.33,26.28351806]
[1761828709681,70.592,187.44,187.31,6.05848039]
[1761828709682,50.0,187.42,187.31,6.05848039]
[1761828709888,7.5999116,187.37,187.32,7.5999116]
[1761828710189,70.592,187.44,187.32,0.72]
[1761828710190,20.592,187.41,187.32,0.72]
[1761828710402,50.0,187.47,187.35,7.5999116]
[1761828710610,7.5999116,187.41,187.33,0.72]
[1761828710829,7.5999116,187.43,187.33,0.72]
[1761828711122,50.0,187.47,187.34,7.5999116]
[1761828711123,7.5999116,187.39,187.34,7.5999116]
[1761828711424,7.5999116,187.39,187.33,8.3199116]
[1761828711597,7.5999116,187.39,187.34,8.3199116]
[1761828711796,20.592,187.41,187.35,7.5999116]
[1761828712123,7.5999116,187.42,187.36,7.5999116]
[1761828712326,7.5999116,187.42,187.36,8.0999116]
[1761828712490,50.0,187.5,187.38,7.5999116]
[1761828712690,7.5999116,187.42,187.35,0.3]
[1761828712912,7.5999116,187.42,187.36,7.5999116]
[1761828713117,7.5999116,187.41,187.37,5.33703367]
[1761828713293,7.5999116,187.4,187.35,0.3]
[1761828713493,20.592,187.44,187.35,0.3]
[1761828713725,7.5999116,187.4,187.35,13.23749499]
[1761828713928,50.0,187.47,187.36,7.5999116]
[1761828714098,7.5999116,187.42,187.36,0.65]
[1761828714294,20.592,187.46,187.38,7.5999116]
[1761828714515,9.78882769,187.51,187.38,7.5999116]
[1761828714516,7.5999116,187.44,187.38,7.5999116]
[1761828714703,7.5999116,187.43,187.38,8.2499116]
[1761828714914,7.5999116,187.43,187.38,0.65]
[1761828715230,7.5999116,187.43,187.39,0.65]
[1761828715536,20.592,187.48,187.39,19.32758115]
[1761828715698,7.5999116,187.44,187.39,19.32758115]
[1761828716100,7.5999116,187.43,187.39,0.65]
[1761828716553,7.5999116,187.41,187.35,13.43947451]
[1761828716762,20.592,187.46,187.37,7.5999116]
[1761828717053,7.5999116,187.4,187.33,0.65]
[1761828717264,7.5999116,187.38,187.33,0.65]
[1761828717562,7.5999116,187.37,187.33,0.65]
[1761828718053,20.592,187.42,187.34,7.5999116]
[1761828718240,9.78882769,187.47,187.36,7.5999116]
[1761828718440,7.5999116,187.41,187.36,7.5999116]
[1761828718647,7.5999116,187.4,187.35,0.65]
[1761828718959,7.5999116,187.38,187.33,7.5999116]
[1761828719123,50.0,187.42,187.31,0.65]
[1761828719124,7.5999116,187.35,187.31,0.65]
[1761828719322,20.592,187.39,187.32,7.5999116]
[1761828719524,4.20900472,187.5,187.35,7.5999116]
[1761828719726,7.5999116,187.38,187.32,0.65]
[1761828719924,70.592,187.43,187.32,0.65]
[1761828719925,20.592,187.4,187.32,0.65]
[1761828720135,20.592,187.4,187.32,8.2499116]
[1761828720455,7.5999116,187.37,187.32,8.2499116]
[1761828720760,7.5999116,187.33,187.28,0.65]
[1761828720932,7.5999116,187.29,187.23,0.65]
[1761828721119,7.5999116,187.24,187.13,1.18438785]
[1761828721322,20.592,187.3,187.15,7.5999116]
[1761828721323,7.5999116,187.21,187.15,7.5999116]
[1761828721526,7.5999116,187.17,187.14,5.99359303]
[1761828721722,70.592,187.23,187.14,0.65]
[1761828721962,7.5999116,187.18,187.12,7.6999116]
[1761828722120,7.5999116,187.18,187.15,0.65]
[1761828722326,7.5999116,187.17,187.13,0.65]
[1761828722528,20.592,187.23,187.12,26.40444144]
[1761828722735,7.5999116,187.19,187.14,0.65]
[1761828723023,20.592,187.23,187.15,7.5999116]
[1761828723221,20.592,187.29,187.21,7.5999116]
[1761828723422,50.0,187.35,187.23,5.03097102]
[1761828723645,50.0,187.35,187.19,0.14216157]
[1761828723646,5.03097102,187.3,187.19,0.14216157]
[1761828723924,5.03097102,187.23,187.17,5.03097102]
[1761828724234,5.03097102,187.18,187.12,0.75]
[1761828724562,5.03097102,187.16,187.12,0.75]
[1761828724849,5.03097102,187.15,187.12,6.09412083]
[1761828725034,20.592,187.23,187.14,5.03097102]
[1761828725354,20.592,187.23,187.13,0.65]
[1761828725576,5.03097102,187.22,187.13,5.9937166]
[1761828725864,5.03097102,187.22,187.14,0.65]
[1761828726061,70.592,187.23,187.12,0.75]
[1761828726350,20.592,187.23,187.13,5.03097102]
[1761828726653,5.03097102,187.17,187.12,6.09413274]
[1761828726961,70.592,187.23,187.12,5.44414965]
[1761828726962,50.0,187.21,187.12,5.44414965]
[1761828727161,20.592,187.2,187.12,6.09414965]
[1761828727451,20.592,187.2,187.12,0.1]
[1761828727647,5.03097102,187.13,187.12,0.1]
[1761828727966,20.592,187.2,187.13,0.65]
[1761828727967,5.03097102,187.17,187.13,0.65]
[1761828728126,20.592,187.2,187.13,0.65]
[1761828728127,20.592,187.21,187.13,5.68097102]
[1761828728330,5.03097102,187.14,187.12,0.1]
[1761828728529,5.03097102,187.13,187.12,0.1]
[1761828728725,5.03097102,187.14,187.12,0.1]
[1761828728952,5.03097102,187.13,187.12,0.1]
[1761828729258,20.592,187.16,187.12,0.1]
[1761828729442,5.03097102,187.14,187.12,5.44414756]
[1761828729647,5.03097102,187.15,187.12,5.44414756]
[1761828729837,5.03097102,187.16,187.13,0.65]
[1761828730037,5.03097102,187.15,187.12,0.1]
[1761828730236,75.62297102,187.22,187.13,0.65]
[1761828730436,70.592,187.22,187.13,0.65]
[1761828730636,20.592,187.22,187.15,5.03097102]
[1761828730826,50.0,187.25,187.14,5.17313259]
[1761828730827,5.03097102,187.2,187.14,5.17313259]
[1761828731031,5.03097102,187.18,187.14,5.34359303]
[1761828731253,20.592,187.22,187.14,19.3525756]
[1761828731463,50.0,187.25,187.15,0.65]
[1761828731673,5.03097102,187.16,187.12,0.1]
[1761828731888,50.0,187.17,187.12,0.1]
[1761828732062,70.592,187.17,187.12,0.1]
[1761828732367,20.592,187.17,187.12,0.1]
[1761828732570,5.03097102,187.13,187.12,0.1]
[1761828732794,20.592,187.17,187.12,0.1]
[1761828732940,14.81979871,187.22,187.13,0.65]
[1761828733253,5.03097102,187.18,187.14,18.7025756]
[1761828733451,59.78882769,187.26,187.14,18.7025756]
[1761828733452,5.03097102,187.24,187.17,5.03097102]
[1761828733664,5.03097102,187.23,187.16,0.7]
[1761828733971,50.0,187.28,187.16,0.7]
[1761828734182,50.0,187.28,187.14,5.34359303]
[1761828734183,5.03097102,187.2,187.14,5.34359303]
[1761828734354,50.0,187.23,187.14,5.03097102]
[1761828734557,5.03097102,187.18,187.13,11.07484089]
[1761828734863,5.03097102,187.16,187.12,5.44399209]
[1761828735173,50.0,187.17,187.12,0.1]
[1761828735376,5.03097102,187.13,187.12,0.1]
[1761828735599,50.0,187.22,187.12,11.17504269]
[1761828735758,5.03097102,187.16,187.12,0.1]
[1761828736083,50.0,187.18,187.12,0.1]
[1761828736258,5.03097102,187.14,187.12,0.1]
[1761828736457,20.592,187.17,187.12,0.1]
[1761828736662,5.03097102,187.15,187.12,0.1]
[1761828736867,55.03097102,187.13,187.12,0.1]
[1761828737562,64.81979871,187.13,187.12,0.1]
[1761828737797,59.78882769,187.13,187.12,0.1]
[1761828737961,64.81979871,187.13,187.12,0.1]
[1761828738494,5.03097102,187.13,187.12,0.1]
[1761828738692,55.03097102,187.13,187.12,0.1]
[1761828739060,64.81979871,187.13,187.12,0.1]
[1761828739961,64.81979871,187.13,186.93,0.95779934]
[1761828739962,70.592,187.09,186.99,10.37859857]
[1761828740163,20.592,187.08,187.0,5.03097102]
[1761828740400,1.99999999,187.18,187.0,5.03097102]
[1761828740401,20.592,187.12,187.05,5.03097102]
[1761828740570,20.592,187.12,187.06,5.73097102]
[1761828740571,25.62297102,187.12,187.06,5.73097102]
[1761828740766,25.62297102,187.12,187.06,0.7]
[1761828740767,20.592,187.12,187.06,0.7]
[1761828740982,5.03097102,187.11,187.06,0.7]
[1761828741189,5.03097102,187.11,187.07,5.34559255]
[1761828741396,20.592,187.12,187.07,10.37656357]
[1761828741562,20.592,187.12,187.07,5.34559255]
[1761828741890,25.62297102,187.12,187.07,6.04559255]
[1761828742397,50.0,187.19,187.08,0.71]
[1761828742577,59.78882769,187.21,187.11,5.03097102]
[1761828742776,5.03097102,187.19,187.13,5.03097102]
[1761828742994,5.03097102,187.17,187.08,0.71]
[1761828743296,50.0,187.21,187.12,5.34416417]
[1761828743297,5.03097102,187.16,187.12,5.34416417]
[1761828743464,50.0,187.25,187.15,5.03097102]
[1761828743667,50.0,187.25,187.14,5.03097102]
[1761828743668,5.03097102,187.2,187.14,5.03097102]
[1761828743862,50.0,187.23,187.13,5.74097102]
[1761828744067,5.03097102,187.19,187.14,5.03097102]
[1761828744299,5.03097102,187.2,187.14,5.03097102]
[1761828744465,50.0,187.21,187.11,5.34442257]
[1761828744795,50.0,187.26,187.17,5.03097102]
[1761828744993,5.03097102,187.25,187.2,5.03097102]
[1761828745374,5.03097102,187.28,187.22,5.03097102]
[1761828745572,5.03097102,187.28,187.23,5.03097102]